bitfinex/quotes_SOLUSD_20250514
["timestamp","ask_amount","ask_price","bid_price","bid_amount"]
[1747222082845,8.97787543,180.79,180.74,8.620037]
[1747222083140,8.97787543,180.79,180.75,8.47787543]
[1747222083311,0.5,180.79,180.76,0.14216157]
[1747222083517,0.5,180.79,180.76,8.76219857]
[1747222083826,0.5,180.79,180.77,8.47787543]
[1747222086239,0.5,180.79,180.76,8.76219857]
[1747222086445,18.32,180.8,180.76,8.76219857]
[1747222086619,26.79787543,180.8,180.77,0.28432314]
[1747222087122,18.32,180.8,180.77,0.28432314]
[1747222088329,26.79787543,180.8,180.77,0.28432314]
[1747222089355,18.32,180.8,180.77,0.28432314]
[1747222089526,26.79787543,180.8,180.77,0.28432314]
[1747222089727,18.32,180.8,180.77,0.28432314]
[1747222090422,18.3,180.85,180.77,8.76219857]
[1747222090934,8.47787543,180.82,180.77,8.76219857]
[1747222091651,18.3,180.85,180.77,8.76219857]
[1747222091882,8.47787543,180.82,180.77,8.76219857]
[1747222092353,1.4,180.81,180.77,8.76219857]
[1747222092725,1.4,180.81,180.79,8.47787543]
[1747222092952,32.3438,180.86,180.79,0.14216157]
[1747222092953,8.47787543,180.83,180.79,0.14216157]
[1747222093278,8.47787543,180.83,180.79,0.28432314]
[1747222094062,8.47787543,180.83,180.78,8.47787543]
[1747222095142,18.3,180.86,180.8,8.47787543]
[1747222095351,8.47787543,180.85,180.78,1.83582314]
[1747222095672,8.47787543,180.85,180.8,8.47787543]
[1747222096259,18.3,180.86,180.8,8.47787543]
[1747222096461,8.47787543,180.85,180.8,8.47787543]
[1747222097370,2.5,180.84,180.8,8.47787543]
[1747222097554,8.47787543,180.85,180.8,8.47787543]
[1747222098050,26.77787543,180.86,180.8,8.47787543]
[1747222098367,18.3,180.86,180.82,8.47787543]
[1747222099442,18.3,180.86,180.83,8.47787543]
[1747222099751,8.47787543,180.88,180.83,8.47787543]
[1747222100638,8.47787543,180.88,180.82,0.28432314]
[1747222100969,8.47787543,180.87,180.82,8.76219857]
[1747222101873,8.47787543,180.86,180.82,8.76219857]
[1747222102170,8.47787543,180.87,180.82,8.76219857]
[1747222102350,8.47787543,180.87,180.83,0.28432314]
[1747222102975,8.47787543,180.86,180.82,0.28432314]
[1747222103991,26.0,180.9,180.82,0.28432314]
[1747222104165,8.47787543,180.86,180.82,0.28432314]
[1747222104365,26.0,180.9,180.82,8.76219857]
[1747222104586,8.47787543,180.87,180.82,8.76219857]
[1747222105672,8.47787543,180.86,180.82,0.28432314]
[1747222106188,8.47787543,180.87,180.82,8.76219857]
[1747222106488,8.47787543,180.86,180.82,0.28432314]
[1747222107390,10.97787543,180.86,180.82,0.28432314]
[1747222107766,10.97787543,180.86,180.79,18.32]
[1747222108074,8.47787543,180.82,180.78,1.5515]
[1747222108280,8.47787543,180.82,180.78,0.14216157]
[1747222108483,8.47787543,180.82,180.78,0.28432314]
[1747222108974,8.47787543,180.82,180.77,8.47787543]
[1747222109170,8.47787543,180.82,180.78,0.28432314]
[1747222110374,8.47787543,180.81,180.78,0.28432314]
[1747222110680,8.47787543,180.82,180.78,0.28432314]
[1747222111874,8.47787543,180.81,180.76,8.47787543]
[1747222112083,8.47787543,180.81,180.77,0.28432314]
[1747222114364,8.47787543,180.79,180.74,1.6179]
[1747222114582,8.47787543,180.78,180.74,10.09577543]
[1747222114785,8.47787543,180.78,180.74,1.6179]
[1747222115190,8.47787543,180.78,180.74,27.6179]
[1747222115988,24.5742,180.85,180.74,27.6179]
[1747222116405,8.47787543,180.78,180.74,27.6179]
[1747222117294,24.5742,180.85,180.7,2.8668631]
[1747222117295,8.47787543,180.75,180.7,2.8668631]
[1747222117501,8.47787543,180.73,180.7,2.8668631]
[1747222118170,18.3,180.78,180.7,2.8668631]
[1747222118370,8.47787543,180.75,180.7,11.34473853]
[1747222118674,8.47787543,180.74,180.7,2.8668631]
[1747222118899,8.47787543,180.74,180.7,0.28432314]
[1747222120299,18.3,180.78,180.7,0.28432314]
[1747222120503,8.47787543,180.74,180.7,0.28432314]
[1747222120676,18.3,180.78,180.7,0.28432314]
[1747222121006,8.47787543,180.74,180.7,0.28432314]
[1747222122779,8.47787543,180.73,180.7,0.28432314]
[1747222123312,18.3,180.78,180.68,2.86758627]
[1747222123313,8.47787543,180.72,180.68,2.86758627]
[1747222123972,8.47787543,180.73,180.68,11.3454617]
[1747222124284,8.47787543,180.73,180.69,0.28432314]
[1747222124489,8.47787543,180.74,180.69,8.76219857]
[1747222124674,18.3,180.78,180.69,8.76219857]
[1747222124675,8.47787543,180.75,180.7,8.47787543]
[1747222125673,8.47787543,180.74,180.69,8.76219857]
[1747222127918,8.47787543,180.73,180.69,0.28432314]
[1747222128078,8.47787543,180.73,180.68,11.3454617]
[1747222128281,8.47787543,180.72,180.68,2.86758627]
[1747222128778,5.53372807,180.71,180.68,2.86758627]
[1747222129104,14.0116035,180.71,180.67,0.28432314]
[1747222129453,8.47787543,180.69,180.65,1.5792]
[1747222129605,19.36804825,180.71,180.6,1.541]
[1747222129606,8.47787543,180.66,180.6,1.541]
[1747222129817,8.47787543,180.65,180.6,10.01887543]
[1747222130308,8.47787543,180.64,180.61,0.28432314]
[1747222130513,8.47787543,180.63,180.59,2.87243931]
[1747222130730,5.53648543,180.62,180.59,2.87243931]
[1747222131185,8.47787543,180.62,180.59,2.87243931]
[1747222131385,8.47787543,180.61,180.56,8.47787543]
[1747222131609,8.47787543,180.61,180.56,11.34935927]
[1747222131818,8.47787543,180.6,180.56,2.87148384]
[1747222132014,5.53626594,180.63,180.56,2.87148384]
[1747222132183,8.47787543,180.6,180.56,2.87148384]
[1747222132513,1.9,180.62,180.58,8.76219857]
[1747222132807,8.47787543,180.63,180.59,8.47787543]
[1747222133391,8.47787543,180.64,180.59,8.47787543]
[1747222133891,8.47787543,180.63,180.58,5.82194806]
[1747222134099,8.47787543,180.63,180.58,14.29982349]
[1747222135027,8.47787543,180.64,180.59,8.47787543]
[1747222136635,8.47787543,180.64,180.6,5.53709856]
[1747222136949,5.5356787,180.65,180.58,8.76219857]
[1747222137117,8.47787543,180.62,180.59,0.28432314]
[1747222137321,8.47787543,180.61,180.57,5.53799842]
[1747222137501,8.47787543,180.6,180.56,3.01364541]
[1747222137823,8.47787543,180.59,180.54,5.53893802]
[1747222138027,8.47787543,180.56,180.52,5.5395524]
[1747222138232,8.47787543,180.56,180.5,18.64964886]
[1747222138233,8.47787543,180.55,180.51,14.01768079]
[1747222139220,8.47787543,180.55,180.5,3.15537159]
[1747222139221,8.47787543,180.53,180.5,2.87104845]
[1747222139400,8.47787543,180.54,180.46,24.10139421]
[1747222139601,8.47787543,180.55,180.5,11.49090193]
[1747222139800,8.47787543,180.55,180.5,8.620037]
[1747222140219,8.47787543,180.55,180.5,11.49104307]
[1747222140749,8.47787543,180.56,180.51,0.28432314]
[1747222140920,8.47787543,180.56,180.52,14.01742783]
[1747222141240,8.47787543,180.57,180.52,14.01742783]
[1747222141912,18.5,180.6,180.52,14.01742783]
[1747222141913,8.47787543,180.58,180.53,8.76219857]
[1747222142117,8.47787543,180.58,180.54,8.47787543]
[1747222142345,24.03712679,180.6,180.54,8.47787543]
[1747222142634,2.5,180.57,180.54,8.47787543]
[1747222142839,8.47787543,180.59,180.54,8.47787543]
[1747222142840,8.47787543,180.59,180.54,14.01669784]
[1747222143041,8.47787543,180.6,180.55,8.47787543]
[1747222143433,8.47787543,180.61,180.56,8.47787543]
[1747222143843,8.47787543,180.6,180.56,8.47787543]
[1747222144477,5.53651832,180.62,180.56,8.47787543]
[1747222144615,8.47787543,180.6,180.56,8.47787543]
[1747222145626,8.47787543,180.6,180.55,14.01631271]
[1747222146825,8.47787543,180.6,180.55,5.53843728]
[1747222147019,8.47787543,180.6,180.55,14.01631271]
[1747222147351,8.47787543,180.6,180.56,8.47787543]
[1747222147516,14.01475619,180.61,180.55,5.53843728]
[1747222147713,14.01475619,180.61,180.56,8.47787543]
[1747222147940,1.9,180.6,180.56,8.47787543]
[1747222149041,1.9,180.6,180.56,14.0161921]
[1747222149232,1.9,180.6,180.57,8.47787543]
[1747222149844,1.9,180.6,180.56,5.53831667]
[1747222150140,1.9,180.6,180.57,8.47787543]
[1747222150446,1.9,180.6,180.57,14.01586561]
[1747222150647,1.9,180.6,180.58,8.47787543]
[1747222150820,1.9,180.6,180.59,8.47787543]
[1747222151022,18.5,180.63,180.59,8.47787543]
[1747222151235,18.5,180.63,180.6,8.47787543]
[1747222152342,14.01365409,180.65,180.6,8.47787543]
[1747222152343,5.53577866,180.65,180.6,8.47787543]
[1747222152541,8.47787543,180.66,180.61,8.47787543]
[1747222153516,8.97787543,180.67,180.62,8.47787543]
[1747222153743,14.51294988,180.67,180.62,8.47787543]
[1747222154748,14.51294988,180.67,180.6,5.8214217]
[1747222154941,8.47787543,180.66,180.61,8.47787543]
[1747222156935,5.53556601,180.65,180.61,8.47787543]
[1747222158242,14.01319902,180.66,180.61,8.47787543]
[1747222158735,5.53532359,180.66,180.61,8.47787543]
[1747222158928,14.01319902,180.66,180.61,8.47787543]
[1747222161054,14.01319902,180.66,180.6,5.82138265]
[1747222161238,14.01319902,180.66,180.61,8.47787543]
[1747222161641,8.47787543,180.62,180.58,0.14216157]
[1747222161841,8.47787543,180.62,180.56,18.52]
[1747222161842,8.47787543,180.62,180.56,24.05823365]
[1747222162051,8.47787543,180.62,180.58,8.47787543]
[1747222163054,8.47787543,180.62,180.56,0.14216157]
[1747222163255,5.53556601,180.65,180.57,8.47787543]
[1747222163460,8.47787543,180.62,180.57,8.47787543]
[1747222163761,8.47787543,180.62,180.58,8.47787543]
[1747222164660,14.01448543,180.62,180.58,8.47787543]
[1747222164956,14.01448543,180.62,180.57,8.47787543]
[1747222165349,8.47787543,180.62,180.57,14.01585348]
[1747222165945,14.01415925,180.63,180.58,8.47787543]
[1747222166263,8.47787543,180.63,180.59,8.47787543]
[1747222167171,8.47787543,180.63,180.59,14.01525436]
[1747222167663,14.01382637,180.64,180.59,14.01525436]
[1747222168038,14.01382637,180.64,180.57,5.53801849]
[1747222168238,8.47787543,180.63,180.58,8.76219857]
[1747222169470,8.47787543,180.63,180.58,14.29982582]
[1747222171240,14.01382637,180.64,180.59,8.47787543]
[1747222172756,5.53560901,180.65,180.6,8.47787543]
[1747222172965,5.53533174,180.66,180.62,8.47787543]
[1747222173776,14.01320717,180.66,180.61,8.47787543]
[1747222175075,8.47787543,180.64,180.59,8.47787543]
[1747222175644,8.47787543,180.65,180.6,8.47787543]
[1747222176167,5.53587245,180.64,180.6,8.47787543]
[1747222183452,14.01354139,180.65,180.6,8.47787543]
[1747222188676,5.5352596,180.66,180.6,8.47787543]
[1747222188887,8.47787543,180.65,180.6,8.47787543]
[1747222190280,5.53587245,180.64,180.6,8.47787543]
[1747222191082,18.98,180.67,180.61,8.47787543]
[1747222191251,5.53535384,180.66,180.61,8.47787543]
[1747222191451,14.01322927,180.66,180.6,8.47787543]
[1747222191667,8.47787543,180.65,180.6,8.47787543]
[1747222192367,5.53587245,180.64,180.6,8.47787543]
[1747222192676,5.53587245,180.64,180.58,5.82192402]
[1747222192677,14.01374788,180.64,180.58,0.28432314]
[1747222192888,8.47787543,180.63,180.58,8.47787543]
[1747222193252,8.47787543,180.63,180.56,5.82257921]
[1747222193253,8.47787543,180.63,180.57,8.47787543]
[1747222193456,8.47787543,180.63,180.56,5.82257921]
[1747222193457,8.47787543,180.63,180.58,8.47787543]
[1747222193886,20.34934788,180.64,180.59,8.47787543]
[1747222195196,14.01355491,180.65,180.61,8.47787543]
[1747222195365,5.53567948,180.65,180.61,8.47787543]
[1747222198074,14.01355491,180.65,180.6,8.47787543]
[1747222206914,14.01355491,180.65,180.6,8.47787543]
[1747222207280,8.47787543,180.64,180.59,0.14216157]
[1747222207480,8.47787543,180.61,180.56,11.35796046]
[1747222208702,5.53679198,180.61,180.57,8.47787543]
[1747222209023,8.47787543,180.6,180.56,2.88008503]
[1747222209317,8.47787543,180.6,180.55,8.47787543]
[1747222210915,5.53740517,180.59,180.55,8.47787543]
[1747222211392,6.4785,180.62,180.58,8.47787543]
[1747222212426,6.2935,180.66,180.61,8.47787543]
[1747222212626,6.2935,180.66,180.62,8.47787543]
[1747222212828,5.53556921,180.65,180.62,8.47787543]
[1747222212995,5.53556921,180.65,180.61,8.47787543]
[1747222214101,5.53556921,180.65,180.58,5.82193474]
[1747222214307,5.53556921,180.65,180.61,8.47787543]
[1747222214493,11.82880525,180.66,180.63,8.47787543]
[1747222216230,18.36,180.67,180.64,8.47787543]
[1747222216407,18.36,180.67,180.66,8.47787543]
[1747222216754,6.2995,180.71,180.67,0.28432314]
[1747222216894,5.53189135,180.77,180.7,8.47787543]
[1747222217092,26.5002,180.81,180.76,8.47787543]
[1747222217093,5.53097345,180.8,180.76,8.47787543]
[1747222217331,32.03095021,180.81,180.77,8.47787543]
[1747222218314,40.50882564,180.81,180.76,8.47787543]
[1747222219227,8.47787543,180.79,180.74,8.47787543]
[1747222220100,8.47787543,180.78,180.73,8.47787543]
[1747222220301,5.53189135,180.77,180.73,8.47787543]
[1747222221710,13.82885198,180.79,180.73,8.47787543]
[1747222221915,8.47787543,180.78,180.73,8.47787543]
[1747222222122,22.30672741,180.79,180.74,8.47787543]
[1747222222424,13.82885198,180.79,180.75,8.47787543]
[1747222222625,13.82885198,180.79,180.77,8.47787543]
[1747222222938,5.53097345,180.8,180.77,8.47787543]
[1747222223344,5.53097345,180.8,180.78,8.47787543]
[1747222223717,5.53097345,180.8,180.77,8.47787543]
[1747222227529,5.53097345,180.8,180.78,8.47787543]
[1747222227930,5.53074579,180.81,180.78,8.47787543]
[1747222228232,5.53036168,180.82,180.79,8.47787543]
[1747222228661,5.53036168,180.82,180.8,8.47787543]
[1747222229249,5.53036168,180.82,180.79,8.47787543]
[1747222230824,14.00793128,180.83,180.78,8.47787543]
[1747222234345,14.00793128,180.83,180.79,8.47787543]
[1747222234593,14.00793128,180.83,180.78,8.47787543]
[1747222235626,8.47787543,180.82,180.77,8.47787543]
[1747222235957,8.47787543,180.78,180.73,8.47787543]
[1747222236252,8.47787543,180.78,180.72,18.32]
[1747222236448,8.47787543,180.79,180.74,8.47787543]
[1747222236647,5.53158535,180.78,180.74,8.47787543]
[1747222236852,5.53036168,180.82,180.77,8.47787543]
[1747222237065,5.53036168,180.82,180.79,8.47787543]
[1747222237272,5.53036168,180.82,180.78,8.47787543]
[1747222240279,14.0080248,180.83,180.78,8.47787543]
[1747222240448,14.0080248,180.83,180.79,8.47787543]
[1747222241370,14.0080248,180.83,180.75,8.47787543]
[1747222241371,8.47787543,180.8,180.75,8.47787543]
[1747222242164,5.53127938,180.79,180.75,8.47787543]
[1747222243172,5.53127938,180.79,180.74,34.47787543]
[1747222243372,8.47787543,180.78,180.74,26.0]
[1747222243543,8.47787543,180.78,180.73,8.620037]
[1747222244248,8.47787543,180.78,180.73,0.14216157]
[1747222244743,8.47787543,180.78,180.73,8.620037]
[1747222245670,5.53189135,180.77,180.73,8.620037]
[1747222247371,14.00946401,180.78,180.73,8.620037]
[1747222247553,5.53158858,180.78,180.74,8.47787543]
[1747222248263,14.00946401,180.78,180.73,8.620037]
[1747222250069,14.00946401,180.78,180.73,14.15312978]
[1747222250277,31.53036168,180.82,180.74,8.76219857]
[1747222250478,8.47787543,180.8,180.75,8.47787543]
[1747222250680,8.47787543,180.79,180.74,8.76219857]
[1747222251863,5.53158535,180.78,180.74,8.76219857]
[1747222253251,7.33158535,180.78,180.74,8.76219857]
[1747222254168,5.53158535,180.78,180.74,0.28432314]
[1747222254701,5.53133896,180.79,180.75,8.47787543]
[1747222256116,5.53036168,180.82,180.76,8.76219857]
[1747222256275,18.32,180.83,180.8,8.47787543]
[1747222256596,23.85005902,180.83,180.76,0.28432314]
[1747222256755,5.53005902,180.83,180.79,8.47787543]
[1747222256951,16.16417543,180.85,180.8,8.76219857]
[1747222257188,5.5291257,180.87,180.82,8.47787543]
[1747222257359,5.5291257,180.87,180.83,8.47787543]
[1747222257772,5.5291257,180.87,180.81,0.14216157]
[1747222257974,14.00700113,180.87,180.82,8.47787543]
[1747222259622,5.5291257,180.87,180.83,8.47787543]
[1747222260166,5.52863609,180.88,180.85,8.47787543]
[1747222260468,5.52863609,180.88,180.83,0.14216157]
[1747222260682,5.52863609,180.88,180.81,50.18003459]
[1747222260683,8.47787543,180.86,180.81,8.47787543]
[1747222261812,5.52944429,180.85,180.81,8.47787543]
[1747222261981,8.47787543,180.83,180.78,18.32]
[1747222262310,8.47787543,180.84,180.79,8.47787543]
[1747222262479,29.83093044,180.85,180.8,8.47787543]
[1747222263091,8.47787543,180.84,180.79,8.47787543]
[1747222263792,5.53005585,180.83,180.79,8.47787543]
[1747222266130,8.47787543,180.82,180.76,18.933972]
[1747222266279,8.47787543,180.82,180.77,26.79787543]
[1747222266617,14.00793128,180.83,180.78,8.47787543]
[1747222267029,8.47787543,180.82,180.77,18.32]
[1747222267199,5.53005585,180.83,180.77,26.79787543]
[1747222267380,8.47787543,180.82,180.77,26.79787543]
[1747222267576,5.53005585,180.83,180.78,8.47787543]
[1747222267909,5.52982466,180.84,180.8,8.47787543]
[1747222268718,14.00770009,180.84,180.79,8.47787543]
[1747222269651,8.47787543,180.82,180.78,0.28432314]
[1747222269795,8.47787543,180.83,180.78,8.76219857]
[1747222270207,5.53005585,180.83,180.79,8.47787543]
[1747222271094,8.47787543,180.84,180.79,8.47787543]
[1747222271294,32.30679717,180.87,180.82,8.47787543]
[1747222271514,18.3,180.87,180.83,8.47787543]
[1747222271701,23.82887318,180.87,180.83,8.47787543]
[1747222271901,5.52887318,180.87,180.83,8.47787543]
[1747222272100,7.8836,180.89,180.84,8.47787543]
[1747222272301,7.8836,180.89,180.83,5.53005328]
[1747222272302,7.8836,180.89,180.85,8.47787543]
[1747222273000,13.41189191,180.89,180.85,8.47787543]
[1747222273210,2.1,180.88,180.84,8.620037]
[1747222273416,8.47787543,180.87,180.82,0.28432314]
[1747222273600,8.47787543,180.87,180.82,8.76219857]
[1747222273995,8.47787543,180.87,180.82,0.28432314]
[1747222274323,14.00701399,180.86,180.81,8.47787543]
[1747222274529,5.52913856,180.86,180.81,8.47787543]
[1747222274719,14.00701399,180.86,180.81,8.47787543]
[1747222275422,5.52913856,180.86,180.82,8.47787543]
[1747222277406,8.47787543,180.87,180.82,8.47787543]
[1747222278131,13.41188887,180.89,180.84,8.47787543]
[1747222278334,2.0,180.86,180.84,8.47787543]
[1747222278536,21.8897643,180.89,180.84,8.47787543]
[1747222278909,21.8897772,180.89,180.84,8.47787543]
[1747222279437,13.41190177,180.89,180.85,8.47787543]
[1747222280046,8.47787543,180.88,180.84,8.47787543]
[1747222282141,21.8897772,180.89,180.84,8.47787543]
[1747222282319,8.47787543,180.88,180.83,8.47787543]
[1747222282646,8.47787543,180.86,180.75,32.13069786]
[1747222282932,8.47787543,180.83,180.78,8.47787543]
[1747222283336,8.47787543,180.83,180.76,26.0]
[1747222283510,8.47787543,180.82,180.77,8.47787543]
[1747222283706,8.47787543,180.81,180.76,8.47787543]
[1747222283940,8.47787543,180.82,180.77,8.47787543]
[1747222284236,5.53066755,180.81,180.77,8.47787543]
[1747222285417,5.53066755,180.81,180.78,8.47787543]
[1747222286043,5.52944429,180.85,180.8,8.47787543]
[1747222286343,14.00640263,180.88,180.83,8.47787543]
[1747222286710,8.47787543,180.87,180.81,0.28432314]
[1747222286937,8.47787543,180.86,180.81,0.28432314]
[1747222287443,8.47787543,180.87,180.82,8.47787543]
[1747222287815,5.5285272,180.88,180.82,8.47787543]
[1747222288017,8.47787543,180.87,180.82,8.47787543]
[1747222288445,5.52944429,180.85,180.82,8.47787543]
[1747222289653,5.52919028,180.86,180.82,8.47787543]
[1747222291343,14.00706571,180.86,180.81,8.76219857]
[1747222292155,14.00706571,180.86,180.8,18.54]
[1747222292458,14.00706571,180.86,180.81,8.47787543]
[1747222292660,5.52919028,180.86,180.82,8.47787543]
[1747222293042,14.00706571,180.86,180.81,8.47787543]
[1747222293446,2.1,180.85,180.81,8.47787543]
[1747222294158,5.52975005,180.84,180.82,8.47787543]
[1747222294361,5.52975005,180.84,180.8,18.54]
[1747222294548,5.52975005,180.84,180.81,8.47787543]
[1747222295260,5.52975005,180.84,180.8,27.01787543]
[1747222295479,5.52975005,180.84,180.81,8.47787543]
[1747222296678,14.00731972,180.85,180.8,27.01787543]
[1747222296850,8.47787543,180.83,180.78,8.47787543]
[1747222297681,19.35305501,180.85,180.79,8.47787543]
[1747222298143,8.47787543,180.84,180.79,8.47787543]
[1747222298772,5.53005585,180.83,180.79,8.47787543]
[1747222299470,5.53005585,180.83,180.78,0.28432314]
[1747222299673,5.53005585,180.83,180.79,8.47787543]
[1747222301982,5.52977309,180.84,180.8,8.47787543]
[1747222302193,5.52977309,180.84,180.81,8.47787543]
[1747222302368,5.52942648,180.86,180.82,8.47787543]
[1747222306293,6.52958246,180.85,180.82,8.47787543]
[1747222306861,5.52958246,180.85,180.82,8.47787543]
[1747222308583,5.52913856,180.86,180.82,8.47787543]
[1747222310304,8.47787543,180.87,180.82,8.47787543]
[1747222310580,14.00664733,180.88,180.83,8.47787543]
[1747222311552,21.88980095,180.89,180.84,8.47787543]
[1747222311755,7.8836,180.89,180.85,8.76219857]
[1747222311974,26.77787543,180.91,180.86,8.47787543]
[1747222312483,8.47787543,180.9,180.85,8.76219857]
[1747222312793,14.00583805,180.9,180.85,8.76219857]
[1747222313780,32.30554801,180.91,180.86,8.47787543]
[1747222314088,23.82767258,180.91,180.87,8.47787543]
[1747222314860,5.52767258,180.91,180.87,8.47787543]
[1747222317083,5.52767258,180.91,180.85,0.28432314]
[1747222317475,5.52767258,180.91,180.87,8.47787543]
[1747222318371,14.00554801,180.91,180.86,8.47787543]
[1747222320192,5.52730488,180.92,180.86,8.47787543]
[1747222320391,8.47787543,180.91,180.86,8.47787543]
[1747222320609,8.47787543,180.87,180.82,8.620037]
[1747222320885,26.97787543,180.9,180.82,0.14216157]
[1747222321077,8.47787543,180.85,180.8,14.00874238]
[1747222321883,8.47787543,180.85,180.81,0.28432314]
[1747222322088,8.47787543,180.86,180.81,8.76219857]
[1747222322288,14.00713878,180.86,180.81,8.620037]
[1747222322783,14.00713878,180.86,180.82,0.14216157]
[1747222322972,5.52926335,180.86,180.82,0.14216157]
[1747222323176,14.00713878,180.86,180.82,0.14216157]
[1747222323355,5.52926335,180.86,180.82,8.620037]
[1747222323559,14.00713878,180.86,180.82,8.620037]
[1747222324999,14.00713878,180.86,180.82,0.14216157]
[1747222325304,8.47787543,180.83,180.77,2.88118598]
[1747222325472,7.06076335,180.86,180.73,5.53311569]
[1747222325473,8.47787543,180.79,180.73,5.53311569]
[1747222325785,8.47787543,180.77,180.72,17.07644049]
[1747222326006,8.47787543,180.76,180.72,8.59856506]
[1747222326306,1.5315,180.79,180.73,8.76219857]
[1747222326466,8.47787543,180.78,180.73,0.28432314]
[1747222326795,8.47787543,180.77,180.72,17.07644049]
[1747222327286,8.47787543,180.77,180.73,0.28432314]
[1747222328193,8.47787543,180.79,180.74,8.47787543]
[1747222328400,5.53036168,180.82,180.76,8.47787543]
[1747222328691,14.00823711,180.82,180.77,8.47787543]
[1747222328989,8.47787543,180.8,180.75,8.47787543]
[1747222329186,8.47787543,180.82,180.77,8.47787543]
[1747222329385,7.13263645,180.83,180.77,8.47787543]
[1747222329561,14.00835967,180.82,180.77,8.47787543]
[1747222330168,8.47787543,180.83,180.78,0.28432314]
[1747222330370,8.47787543,180.83,180.78,8.76219857]
[1747222330686,20.37740506,180.84,180.79,8.47787543]
[1747222331064,8.47787543,180.82,180.78,0.28432314]
[1747222332163,8.47787543,180.79,180.73,8.47787543]
[1747222332358,8.47787543,180.78,180.73,8.47787543]
[1747222333188,8.47787543,180.77,180.71,28.88271046]
[1747222333394,8.47787543,180.76,180.71,11.36058589]
[1747222333590,8.47787543,180.75,180.71,2.88271046]
[1747222333785,8.47787543,180.75,180.71,11.36058589]
[1747222333786,5.53280956,180.74,180.71,11.36058589]
[1747222333987,5.53280956,180.74,180.71,2.88271046]
[1747222334185,5.53280956,180.74,180.71,11.36058589]
[1747222335005,14.01043181,180.75,180.71,11.36058589]
[1747222335293,5.53255638,180.75,180.71,11.36058589]
[1747222335495,14.01014719,180.76,180.71,11.36058589]
[1747222337387,5.53158535,180.78,180.73,8.47787543]
[1747222337565,14.00946078,180.78,180.73,8.47787543]
[1747222341691,14.00946078,180.78,180.71,2.88271046]
[1747222341692,8.47787543,180.77,180.71,2.88271046]
[1747222341895,8.47787543,180.76,180.71,8.47787543]
[1747222342699,8.47787543,180.75,180.7,8.76219857]
[1747222343774,5.53235344,180.76,180.72,8.47787543]
[1747222344067,14.01022887,180.76,180.71,8.47787543]
[1747222344383,14.01022887,180.76,180.7,0.28432314]
[1747222344580,8.47787543,180.73,180.69,2.88349228]
[1747222344894,8.47787543,180.71,180.66,0.14216157]
[1747222345096,8.47787543,180.7,180.66,2.88428926]
[1747222345479,8.47787543,180.71,180.66,11.36216469]
[1747222345807,14.0116402,180.71,180.66,2.88428926]
[1747222346187,14.0116402,180.71,180.66,11.36216469]
[1747222349403,14.0116402,180.71,180.66,16.89740833]
[1747222350582,14.0116402,180.71,180.66,11.36216469]
[1747222351906,18.6,180.73,180.67,8.47787543]
[1747222352204,8.47787543,180.72,180.67,8.47787543]
[1747222353701,8.47787543,180.72,180.67,14.01274849]
[1747222354706,8.47787543,180.75,180.68,18.933972]
[1747222354883,8.47787543,180.76,180.71,8.47787543]
[1747222355915,14.0101384,180.76,180.71,8.47787543]
[1747222356496,8.47787543,180.74,180.7,8.76219857]
[1747222357613,8.47787543,180.75,180.7,8.76219857]
[1747222359509,5.53189135,180.77,180.7,8.76219857]
[1747222359815,14.01042219,180.75,180.7,14.29622972]
[1747222360698,14.01042219,180.75,180.7,8.76219857]
[1747222363203,14.01042219,180.75,180.7,14.29616192]
[1747222364411,18.6,180.78,180.72,0.14216157]
[1747222364599,8.47787543,180.79,180.74,8.47787543]
[1747222365003,8.47787543,180.78,180.73,8.47787543]
[1747222365813,18.6,180.8,180.73,8.47787543]
[1747222365990,8.47787543,180.78,180.73,8.47787543]
[1747222366416,5.53189135,180.77,180.73,8.47787543]
[1747222366806,14.00956948,180.78,180.73,8.47787543]
[1747222367832,5.53169405,180.78,180.74,8.47787543]
[1747222368005,5.53005585,180.83,180.77,8.47787543]
[1747222368322,14.00793128,180.83,180.78,8.47787543]
[1747222369508,8.47787543,180.82,180.77,8.47787543]
[1747222369744,8.47787543,180.8,180.75,8.76219857]
[1747222370499,8.47787543,180.8,180.76,8.47787543]
[1747222370702,14.00895542,180.8,180.76,8.47787543]
[1747222371213,8.47787543,180.78,180.73,10.07667543]
[1747222371400,8.47787543,180.78,180.73,8.47787543]
[1747222372522,14.0097499,180.78,180.73,8.47787543]
[1747222372711,8.47787543,180.77,180.72,8.76219857]
[1747222373105,14.0097499,180.78,180.73,8.47787543]
[1747222373812,8.47787543,180.77,180.72,8.76219857]
[1747222374605,8.47787543,180.77,180.72,8.47787543]
[1747222374606,14.00996443,180.77,180.72,8.47787543]
[1747222374806,8.47787543,180.76,180.71,26.85787543]
[1747222375214,8.47787543,180.76,180.69,1.5471]
[1747222375215,8.47787543,180.73,180.69,8.47787543]
[1747222375415,8.47787543,180.73,180.68,17.03758129]
[1747222375616,8.47787543,180.73,180.68,2.88310819]
[1747222375918,8.47787543,180.72,180.67,14.01275498]
[1747222376832,14.0113328,180.72,180.67,8.47787543]